fUSD/lending_fUSD_20260407
["ID","MTS","AMOUNT","RATE_DAILY","PERIOD"]
[419939576,1775523617433,-500.0,0.00011572,2]
[419939577,1775523617456,-500.0,0.00011572,2]
[419939578,1775523617478,-591.04079691,0.00011572,2]
[419939579,1775523617500,-500.0,0.00011572,2]
[419939580,1775523617524,-500.0,0.00011572,2]
[419939581,1775523617547,-500.0,0.00011572,2]
[419939582,1775523617569,-500.0,0.00011572,2]
[419939583,1775523617592,-500.0,0.00011572,2]
[419939584,1775523617614,-500.0,0.00011572,2]
[419939585,1775523617636,-500.0,0.00011572,2]
[419939586,1775523618062,-500.0,0.00011572,2]
[419939587,1775523618086,-500.0,0.00011572,2]
[419939588,1775523618108,-1084.35002386,0.00011572,3]
[419939589,1775523618131,-965.89033693,0.00011572,2]
[419939591,1775523769814,162.87,5.953e-05,2]
[419939592,1775523771654,162.87,6.804e-05,2]
[419939593,1775523771688,162.87,7.654e-05,2]
[419939594,1775523771730,162.87,8.505e-05,2]
[419939628,1775524233249,-284.0,9.355e-05,2]
[419939629,1775524233259,-162.87,9.355e-05,2]
[419939630,1775524233269,-894.35333749,0.0001,2]
[419939631,1775524233280,-777.16139027,0.0001,2]
[419939632,1775524233290,-5144.35551419,0.0001,2]
[419939633,1775524233300,-162.87,0.00010206,2]
[419939634,1775524233310,-2983.15798037,0.00010291,2]
[419939635,1775524233321,-250.0,0.00010291,2]
[419939636,1775524233331,-1362.0,0.000108,5]
[419939637,1775524233341,-294.13,0.000108,2]
[419939638,1775524233352,-150.0,0.0001089,2]
[419939639,1775524233361,-1200.0,0.0001089,2]
[419939640,1775524233371,-300.0,0.0001089,2]
[419939641,1775524233381,-441.19,0.00010891,2]
[419939642,1775524233391,-66053.9,0.00010891,2]
[419939643,1775524233401,-162.87,0.00011056,2]
[419939644,1775524233411,-150.0,0.000112,2]
[419939645,1775524233423,-1600.0,0.00011351,2]
[419939646,1775524233433,-932.77109222,0.00011462,2]
[419939647,1775524233442,-500.0,0.00011463,2]
[419939648,1775524233453,-500.0,0.00011471,2]
[419939649,1775524233463,-500.0,0.00011471,2]
[419939650,1775524233473,-500.0,0.00011471,2]
[419939651,1775524233482,-227.7666594,0.00011471,2]
[419939652,1775524233492,-500.0,0.00011471,2]
[419939653,1775524233502,-500.0,0.00011471,2]
[419939654,1775524233512,-406.46527178,0.00011471,2]
[419939655,1775524233522,-600.0,0.00011471,2]
[419939656,1775524233531,-500.0,0.00011471,2]
[419939657,1775524233541,-500.0,0.00011471,2]
[419939658,1775524233551,-500.0,0.00011471,2]
[419939659,1775524233561,-409.08049284,0.00011471,2]
[419939660,1775524233570,-22635.46205207,0.00011472,2]
[419939661,1775524233583,-117915.59620937,0.00011472,2]
[419939662,1775524233594,-851.12712388,0.00011472,2]
[419939663,1775524233638,-500.0,0.00011471,2]
[419939664,1775524233649,-1096.1980296,0.00011472,2]
[419939665,1775524233661,-4017.50688653,0.00011472,2]
[419939666,1775524233767,-500.0,0.00011471,2]
[419939667,1775524233777,-500.0,0.00011471,2]
[419939668,1775524233787,-36727.37371754,0.00011472,2]
[419939678,1775524239275,-500.0,0.00011471,2]
[419939679,1775524239285,-500.0,0.00011471,2]
[419939680,1775524239296,-500.0,0.00011471,2]
[419939681,1775524239307,-500.0,0.00011471,2]
[419939682,1775524239316,-500.0,0.00011471,2]
[419939683,1775524239326,-500.0,0.00011471,2]
[419939684,1775524239336,-250.0,0.00011471,2]
[419939685,1775524239346,-42412.84908054,0.00011472,2]
[419939686,1775524239362,-2540.46665762,0.00011472,2]
[419939687,1775524239390,-1949.34889468,0.00011472,2]
[419939688,1775524239403,-2280.67236656,0.00011472,2]
[419939689,1775524239414,-331.43,0.00011472,2]
[419939690,1775524239426,-2027.98034925,0.00011472,2]
[419939691,1775524239438,-1553.52,0.00011472,2]
[419939692,1775524239454,-1076.55582393,0.00011472,2]
[419939693,1775524239469,-1897.34812686,0.00011472,2]
[419939694,1775524240685,-649.29216344,0.000108,5]
[419939695,1775524240697,-4884.70783656,0.000108,5]
[419939696,1775524240707,-4489.20782917,0.00011372,2]
[419939697,1775524240716,-214.83392876,0.00011471,2]
[419939698,1775524240725,-1255057.98648157,0.00011472,2]
[419939699,1775524240735,-32804.5337,0.00011473,2]
[419939700,1775524240744,-15036.6123,0.00011473,2]
[419939701,1775524240754,-2500.0,0.00011473,2]
[419939702,1775524240763,-5271.792,0.00011473,2]
[419939703,1775524240772,-1000.0,0.00011473,2]
[419939704,1775524240782,-18617.60280533,0.000115,2]
[419939705,1775524240791,-151.0,0.00011566,2]
[419939706,1775524240800,-300.0,0.00011573,7]
[419939707,1775524240810,-152.1236927,0.000116,2]
[419939708,1775524240819,-1072.44,0.00011776,2]
[419939709,1775524240829,-1444.65,0.000118,2]
[419939710,1775524240839,-551.22,0.00011878,2]
[419939711,1775524240848,-150.0,0.00011883,2]
[419939712,1775524240859,-162.87,0.00011906,2]
[419939713,1775524240868,-255.0,0.00011936,2]
[419939714,1775524240878,-1680.0,0.00011979,2]
[419939715,1775524240887,-18617.60280529,0.00011989,2]
[419939716,1775524240897,-150.99,0.00012087,2]
[419939717,1775524240906,-727.25,0.00012087,2]
[419939718,1775524240916,-299.99,0.00012087,2]
[419939719,1775524240925,-9999.99,0.00012087,2]
[419939720,1775524240934,-576.41909116,0.00012171,2]
[419939721,1775524240944,-500.0,0.0001224,2]
[419939722,1775524240954,-500.0,0.0001224,2]
[419939723,1775524240963,-500.0,0.0001224,2]
[419939724,1775524240972,-152.12369265,0.00012317,2]
[419939725,1775524240982,-18617.60280529,0.00012478,2]
[419939726,1775524240991,-167.8548,0.000126,2]
[419939727,1775524241001,-250.33567312,0.0001265,2]
[419939728,1775524241011,-1600.0,0.0001277,2]
[419939729,1775524241020,-1000.0,0.00012788,2]
[419939730,1775524241029,-1000.0,0.00012788,2]
[419939731,1775524241039,-1000.0,0.00012788,2]
[419939732,1775524241048,-3673.42,0.00012804,2]
[419939733,1775524241058,-18617.60280529,0.00012967,2]
[419939734,1775524241067,-250.0,0.00013,2]
[419939735,1775524241077,-501.0,0.00013,2]
[419939736,1775524241087,-260.32,0.00013015,2]
[419939737,1775524241096,-2833.5,0.00013015,2]
[419939738,1775524241106,-2833.5,0.00013015,2]
[419939739,1775524241115,-2833.5,0.00013015,2]
[419939740,1775524241124,-2833.5,0.00013015,2]
[419939741,1775524241134,-712.87704553,0.0001303,2]
[419939742,1775524241143,-152.12369265,0.00013033,2]
[419939743,1775524241153,-433.0,0.00013079,2]
[419939744,1775524241162,-2351.0,0.00013177,2]
[419939745,1775524241171,-1500.0,0.00013261,2]
[419939746,1775524241182,-25836.49,0.00013422,2]
[419939747,1775524241191,-3240.0,0.00013425,2]
[419939748,1775524241201,-18617.60280529,0.00013456,2]
[419939749,1775524241210,-1516.35,0.00013671,2]
[419939750,1775524241220,-500.0,0.00013698,2]
[419939751,1775524241229,-500.0,0.00013698,2]
[419939752,1775524241239,-500.0,0.00013698,2]
[419939753,1775524241248,-500.0,0.00013698,2]
[419939754,1775524241259,-500.0,0.00013698,2]
[419939755,1775524241269,-500.0,0.00013698,2]
[419939756,1775524241279,-500.0,0.00013698,2]
[419939757,1775524241288,-500.0,0.00013698,2]
[419939758,1775524241298,-500.0,0.00013698,2]
[419939759,1775524241308,-500.0,0.00013698,2]
[419939760,1775524241317,-500.0,0.00013698,2]
[419939761,1775524241327,-500.0,0.00013698,2]
[419939762,1775524241336,-500.0,0.00013698,2]
[419939763,1775524241346,-500.0,0.00013698,2]
[419939764,1775524241356,-500.0,0.00013698,2]
[419939765,1775524241366,-559.50723655,0.00013698,2]
[419939766,1775524241376,-500.0,0.00013698,2]
[419939767,1775524241386,-500.0,0.00013698,2]
[419939768,1775524241395,-500.0,0.00013698,2]
[419939769,1775524241405,-500.0,0.00013698,2]
[419939770,1775524241414,-500.0,0.00013698,2]
[419939774,1775524241812,-500.0,0.00013698,2]
[419939775,1775524241831,-500.0,0.00013698,2]
[419939776,1775524241841,-503.57594394,0.00013698,2]
[419939777,1775524241851,-500.0,0.00013698,2]
[419939778,1775524241861,-500.0,0.00013698,2]
[419939779,1775524241871,-500.0,0.00013698,2]
[419939780,1775524241880,-500.0,0.00013698,2]
[419939781,1775524241890,-500.0,0.00013698,2]
[419939782,1775524241899,-500.0,0.00013698,2]
[419939783,1775524241909,-500.0,0.00013698,2]
[419939784,1775524241918,-500.0,0.00013698,2]
[419939785,1775524241928,-500.0,0.00013698,2]
[419939786,1775524241937,-500.0,0.00013698,2]
[419939787,1775524241947,-500.0,0.00013698,2]
[419939788,1775524241956,-500.0,0.00013698,2]
[419939789,1775524241966,-500.0,0.00013698,2]
[419939790,1775524241975,-500.0,0.00013698,2]
[419939791,1775524241985,-500.0,0.00013698,2]
[419939792,1775524241994,-500.0,0.00013698,2]
[419939793,1775524242005,-500.0,0.00013698,2]
[419939794,1775524242015,-500.0,0.00013698,2]
[419939795,1775524242024,-500.0,0.00013698,2]
[419939796,1775524242034,-500.0,0.00013698,2]
[419939797,1775524242043,-500.0,0.00013698,2]
[419939798,1775524242052,-500.0,0.00013698,2]
[419939799,1775524242062,-500.0,0.00013698,2]
[419939800,1775524242072,-500.0,0.00013698,2]
[419939801,1775524242081,-500.0,0.00013698,2]
[419939802,1775524242090,-500.0,0.00013698,2]
[419939803,1775524242099,-500.0,0.00013698,2]
[419939804,1775524242109,-500.0,0.00013698,2]
[419939805,1775524242119,-500.0,0.00013698,2]
[419939806,1775524242128,-500.0,0.00013698,2]
[419939807,1775524242138,-500.0,0.00013698,2]
[419939809,1775524242147,-500.0,0.00013698,2]
[419939811,1775524242157,-500.0,0.00013698,2]
[419939814,1775524242166,-500.0,0.00013698,2]
[419939816,1775524242176,-500.0,0.00013698,2]
[419939818,1775524242185,-500.0,0.00013698,2]
[419939820,1775524242195,-500.0,0.00013698,2]
[419939821,1775524242205,-500.0,0.00013698,2]
[419939822,1775524242215,-500.0,0.00013698,2]
[419939823,1775524242224,-500.0,0.00013698,2]
[419939824,1775524242234,-500.0,0.00013698,2]
[419939825,1775524242243,-500.0,0.00013698,2]
[419939826,1775524242253,-500.0,0.00013698,2]
[419939827,1775524242262,-500.0,0.00013698,2]
[419939828,1775524242272,-502.76097898,0.00013698,2]
[419939829,1775524242281,-500.0,0.00013698,2]
[419939830,1775524242290,-500.0,0.00013698,2]
[419939831,1775524242300,-500.0,0.00013698,2]
[419939832,1775524242309,-500.0,0.00013698,2]
[419939833,1775524242319,-500.0,0.00013698,2]
[419939834,1775524242328,-500.0,0.00013698,2]
[419939835,1775524242337,-500.0,0.00013698,2]
[419939836,1775524242347,-500.0,0.00013698,2]
[419939837,1775524242356,-500.0,0.00013698,2]
[419939838,1775524242366,-500.0,0.00013698,2]
[419939839,1775524242376,-500.0,0.00013698,2]
[419939840,1775524242385,-500.0,0.00013698,2]
[419939841,1775524242395,-500.0,0.00013698,2]
[419939842,1775524242405,-500.0,0.00013698,2]
[419939843,1775524242414,-500.0,0.00013698,2]
[419939844,1775524242424,-500.0,0.00013698,2]
[419939845,1775524242435,-500.0,0.00013698,2]
[419939846,1775524242444,-597.09699837,0.00013698,2]
[419939847,1775524242455,-500.0,0.00013698,2]
[419939848,1775524242466,-500.0,0.00013698,2]
[419939849,1775524242476,-500.0,0.00013698,2]
[419939850,1775524242487,-500.0,0.00013698,2]
[419939851,1775524242498,-500.0,0.00013698,2]
[419939852,1775524242507,-500.0,0.00013698,2]
[419939853,1775524242518,-500.0,0.00013698,2]
[419939854,1775524242527,-500.0,0.00013698,2]
[419939855,1775524242537,-500.0,0.00013698,2]
[419939856,1775524242546,-500.0,0.00013698,2]
[419939857,1775524242556,-500.0,0.00013698,2]
[419939858,1775524242566,-500.0,0.00013698,2]
[419939859,1775524242576,-500.0,0.00013698,2]
[419939860,1775524242585,-500.0,0.00013698,2]
[419939861,1775524242595,-500.0,0.00013698,2]
[419939862,1775524242606,-500.0,0.00013698,2]
[419939863,1775524242616,-500.0,0.00013698,2]
[419939864,1775524242626,-500.0,0.00013698,2]
[419939865,1775524242637,-500.0,0.00013698,2]
[419939866,1775524242647,-500.0,0.00013698,2]
[419939867,1775524242657,-500.0,0.00013698,2]
[419939868,1775524242666,-500.0,0.00013698,2]
[419939869,1775524242676,-500.0,0.00013698,2]
[419939870,1775524242685,-500.0,0.00013698,2]
[419939871,1775524242695,-500.0,0.00013698,2]
[419939872,1775524242705,-500.0,0.00013698,2]
[419939873,1775524242714,-180.22082836,0.00013699,2]
[419939874,1775524242724,-150.0,0.00013699,2]
[419939875,1775524242733,-150.0,0.00013699,2]
[419939876,1775524242743,-150.0,0.00013699,2]
[419939877,1775524242753,-150.0,0.00013699,2]
[419939878,1775524242762,-150.0,0.00013699,2]
[419939879,1775524242772,-158.36,0.00013699,2]
[419939880,1775524242783,-166.66,0.00013699,2]
[419939881,1775524242794,-200.0,0.00013699,2]
[419939882,1775524242803,-160.24,0.00013699,2]
[419939883,1775524242814,-500.0,0.00013699,2]
[419939884,1775524242824,-232.49617864,0.00013699,2]
[419939885,1775524242833,-152.12369265,0.0001375,2]
[419939886,1775524242843,-500.0,0.00013791,2]
[419939887,1775524242852,-500.0,0.00013791,2]
[419939888,1775524242862,-500.0,0.00013791,2]
[419939889,1775524242872,-500.0,0.00013791,2]
[419939890,1775524242882,-500.0,0.00013791,2]
[419939891,1775524242892,-500.0,0.00013791,2]
[419939892,1775524242901,-500.0,0.00013791,2]
[419939893,1775524242911,-166.66,0.00013836,2]
[419939894,1775524242920,-152.0,0.00013871,3]
[419939895,1775524242930,-187.8349,0.000139,2]
[419939896,1775524242939,-18617.60280529,0.00013944,2]
[419939897,1775524242949,-150.0,0.00013973,2]
[419939898,1775524242959,-150.0,0.00013973,2]
[419939899,1775524242969,-150.0,0.00013973,2]
[419939900,1775524242978,-166.66,0.00013973,2]
[419939901,1775524242988,-501.0,0.00013985,2]
[419939902,1775524242998,-5570.81132674,0.00014,7]
[419939903,1775524243008,-200.0,0.00014,2]
[419939904,1775524243018,-160.0,0.00014,2]
[419939905,1775524243028,-155.05158054,0.00014065,2]
[419939906,1775524243038,-1013.0,0.00014082,5]
[419939907,1775524243049,-800.0,0.00014082,2]
[419939908,1775524243059,-2200.0,0.00014082,2]
[419939909,1775524243070,-166.66,0.0001411,2]
[419939910,1775524243080,-1600.0,0.00014189,2]
[419939911,1775524243090,-166.66,0.00014247,2]
[419939912,1775524243100,-150.0,0.00014247,2]
[419939913,1775524243111,-150.0,0.00014247,2]
[419939914,1775524243121,-150.0,0.00014247,2]
[419939915,1775524243131,-578.20924308,0.00014322,2]
[419939916,1775524243142,-500.0,0.00014322,2]
[419939917,1775524243152,-1377.42282659,0.00014322,2]
[419939919,1775524243162,-695.39793187,0.00014322,2]
[419939921,1775524243173,-201.93286098,0.00014322,2]
[419939923,1775524243183,-200.0,0.00014322,2]
[419939924,1775524243193,-500.0,0.00014322,2]
[419939925,1775524243203,-500.0,0.00014322,2]
[419939926,1775524243213,-9211.34798985,0.00014322,2]
[419939927,1775524243223,-500.0,0.00014322,2]
[419939928,1775524243234,-500.0,0.00014322,2]
[419939929,1775524243244,-500.0,0.00014322,2]
[419939930,1775524243254,-500.0,0.00014322,2]
[419939931,1775524243264,-500.0,0.00014322,2]
[419939932,1775524243273,-500.0,0.00014322,2]
[419939933,1775524243284,-500.0,0.00014322,2]
[419939934,1775524243294,-500.0,0.00014322,2]
[419939935,1775524243305,-500.0,0.00014322,2]
[419939936,1775524243315,-500.0,0.00014322,2]
[419939937,1775524243325,-1000.0,0.00014322,2]
[419939938,1775524243335,-1000.0,0.00014322,2]
[419939939,1775524243345,-750.0,0.00014322,2]
[419939940,1775524243355,-174.61919141,0.00014322,2]
[419939941,1775524243366,-151.0,0.00014322,2]
[419939942,1775524243376,-743.50770149,0.00014322,2]
[419939943,1775524243386,-3000.0,0.00014322,2]
[419939944,1775524243397,-2500.0,0.00014322,2]
[419939945,1775524243407,-668.65185757,0.00014322,2]
[419939946,1775524243417,-279.9045709,0.00014322,2]
[419939947,1775524243427,-1500.0,0.00014322,2]
[419939948,1775524243438,-1017.99332474,0.00014322,2]
[419939949,1775524243448,-438.317965,0.00014331,2]
[419939950,1775524243458,-200.895323,0.00014331,7]
[419939951,1775524243468,-436.111131,0.00014331,7]
[419939952,1775524243478,-150.0,0.00014339,2]
[419939953,1775524243488,-736.0,0.00014343,2]
[419939954,1775524243498,-500.0,0.00014377,2]
[419939955,1775524243508,-9552.16786547,0.00014377,2]
[419939956,1775524243518,-151.0,0.00014377,2]
[419939957,1775524243529,-166.66,0.00014384,2]
[419939958,1775524243539,-150.0,0.000144,2]
[419939959,1775524243549,-150.0,0.000144,2]
[419939960,1775524243560,-150.0,0.000144,2]
[419939961,1775524243570,-150.00000001,0.000144,2]
[419939962,1775524243580,-158.80277885,0.000144,2]
[419939963,1775524243591,-150.0,0.000144,2]
[419939964,1775524243601,-500.0,0.00014432,2]
[419939965,1775524243612,-9905.59807649,0.00014432,2]
[419939966,1775524243622,-151.0,0.00014432,2]
[419939967,1775524243632,-18617.60280529,0.00014433,2]
[419939968,1775524243643,-152.0,0.00014463,4]
[419939969,1775524243654,-152.12369265,0.00014467,2]
[419939970,1775524243664,-2776.0,0.00014495,2]
[419939971,1775524243675,-2000.0,0.00014598,2]
[419939972,1775524243685,-171.88484,0.00014624,2]
[419939973,1775524243695,-171.01944,0.00014624,7]
[419939974,1775524243706,-228.201446,0.00014624,2]
[419939975,1775524243716,-265.162186,0.00014624,7]
[419939976,1775524243727,-160.0,0.00014624,7]
[419939977,1775524243737,-362.670815,0.00014624,7]
[419939978,1775524243747,-565.341631,0.00014624,7]
[419939979,1775524243757,-177.029,0.00014624,2]
[419939980,1775524243768,-205.701575,0.00014624,7]
[419939981,1775524243778,-152.0,0.00014819,2]
[419939982,1775524243788,-1000.0,0.00014841,2]
[419939983,1775524243798,-1000.0,0.00014841,2]
[419939984,1775524243808,-1000.0,0.00014841,2]
[419939985,1775524243818,-991.281,0.00014841,2]
[419939986,1775524243828,-1428.38747117,0.0001487,2]
[419939987,1775524243838,-200.0,0.0001487,2]
[419939988,1775524243848,-181.08010149,0.0001487,2]
[419939989,1775524243859,-771.01748645,0.0001487,2]
[419939990,1775524243870,-157.0,0.000149,2]
[419939991,1775524243880,-538.45419376,0.0001491,2]
[419939992,1775524243891,-18617.60280529,0.00014922,2]
[419939993,1775524243901,-501.0,0.00014971,3]
[419939994,1775524243913,-300.0,0.00015,2]
[419939995,1775524243924,-199.235439,0.00015048,2]
[419939996,1775524243935,-198.232332,0.00015048,7]
[419939997,1775524243945,-152.0,0.00015055,5]
[419939998,1775524243955,-800.0,0.00015068,2]
[419939999,1775524243965,-622.0,0.0001508,2]
[419940000,1775524243976,-1347.0,0.0001508,2]
[419940001,1775524243986,-1482.682,0.00015132,2]
[419940002,1775524243996,-169.167,0.00015132,2]
[419940004,1775524244005,-1046.0,0.00015137,2]
[419940005,1775524244015,-3523.0,0.00015137,2]
[419940006,1775524244026,-1263.0,0.00015137,2]
[419940007,1775524244035,-150.0,0.00015137,2]
[419940008,1775524244046,-1221.85,0.00015137,2]
[419940009,1775524244056,-925.0,0.00015137,2]
[419940010,1775524244066,-6021.0,0.00015137,2]
[419940011,1775524244075,-3771.0,0.00015137,2]
[419940012,1775524244085,-152.12369265,0.00015183,2]
[419940013,1775524244095,-210.1933,0.000152,2]
[419940014,1775524244104,-551.22,0.00015206,2]
[419940015,1775524244114,-472.0,0.00015215,2]
[419940016,1775524244124,-1114.0,0.00015215,2]
[419940017,1775524244134,-1012.0,0.00015216,5]
[419940018,1775524244144,-273.03813537,0.0001534,2]
[419940019,1775524244153,-494.551112,0.00015355,7]
[419940020,1775524244163,-500.0,0.00015364,2]
[419940021,1775524244173,-200.0,0.00015364,2]
[419940022,1775524244182,-47726.89482735,0.00015401,2]
[419940023,1775524244192,-18617.60280529,0.00015411,2]
[419940024,1775524244202,-1481.23780761,0.00015418,2]
[419940025,1775524244212,-200.0,0.00015418,2]
[419940026,1775524244222,-187.78006525,0.00015418,2]
[419940028,1775524244232,-799.54513345,0.00015418,2]
[419940029,1775524244242,-800.0,0.00015452,2]
[419940031,1775524244252,-2200.0,0.00015452,2]
[419940032,1775524244262,-1911.0,0.00015455,2]
[419940033,1775524244272,-150.0,0.00015467,2]
[419940034,1775524244284,-150.0,0.00015467,2]
[419940035,1775524244294,-150.0,0.00015467,2]
[419940036,1775524244304,-150.385,0.00015467,2]
[419940037,1775524244315,-306.0,0.000155,2]
[419940038,1775524244326,-1000.0,0.000155,2]
[419940039,1775524244336,-313.0,0.000155,2]
[419940040,1775524244345,-985.59,0.00015511,2]
[419940041,1775524244355,-1911.0,0.00015522,2]
[419940042,1775524244365,-150.0,0.0001558,2]
[419940043,1775524244375,-150.0,0.0001558,2]
[419940044,1775524244385,-150.0,0.0001558,2]
[419940045,1775524244396,-150.0,0.0001558,2]
[419940046,1775524244406,-150.0,0.0001558,2]
[419940047,1775524244415,-150.0,0.0001558,2]
[419940048,1775524244425,-150.0,0.0001558,2]
[419940049,1775524244435,-1911.0,0.00015592,2]
[419940050,1775524244445,-1911.0,0.00015593,2]
[419940051,1775524244456,-1600.0,0.00015608,2]
[419940052,1775524244466,-251.84,0.00015624,2]
[419940053,1775524244476,-1911.0,0.00015645,2]
[419940054,1775524244486,-152.0,0.00015648,6]
[419940055,1775524244496,-259.86957341,0.00015648,5]
[419940056,1775524244506,-2811.0,0.0001568,2]
[419940057,1775524244515,-367.46,0.00015699,2]
[419940058,1775524244526,-1896.0500007,0.000157,2]
[419940059,1775524244535,-1252.0,0.00015715,2]
[419940060,1775524244545,-62306.7402504,0.00015773,2]
[419940061,1775524244555,-168.6442949,0.00015773,2]
[419940062,1775524244565,-65745.7442001,0.00015773,2]
[419940063,1775524244576,-151.0,0.00015773,2]
[419940064,1775524244586,-151.0,0.00015773,2]
[419940065,1775524244596,-272.825687,0.00015773,2]
[419940066,1775524244606,-272.825687,0.00015773,2]
[419940067,1775524244616,-272.825687,0.00015773,2]
[419940068,1775524244626,-272.825687,0.00015773,2]
[419940069,1775524244636,-151.0,0.00015773,2]
[419940070,1775524244646,-377.868724,0.00015773,2]
[419940071,1775524244656,-151.0,0.00015773,2]
[419940072,1775524244665,-377.868724,0.00015773,2]
[419940073,1775524244676,-151.0,0.00015773,2]
[419940074,1775524244686,-151.0,0.00015773,2]
[419940075,1775524244696,-377.868724,0.00015773,2]
[419940076,1775524244706,-151.0,0.00015773,2]
[419940077,1775524244716,-377.868724,0.00015773,2]
[419940078,1775524244726,-250.0,0.00015775,2]
[419940079,1775524244736,-985.59,0.00015785,2]
[419940080,1775524244746,-1911.0,0.00015795,2]
[419940081,1775524244756,-2000.0,0.000158,2]
[419940082,1775524244767,-500.0,0.00015839,2]
[419940083,1775524244778,-2000.0,0.0001584,2]
[419940084,1775524244789,-2000.0,0.0001584,2]
[419940085,1775524244798,-2000.0,0.0001585,2]
[419940086,1775524244809,-1000.0,0.0001585,2]
[419940087,1775524244820,-1000.0,0.0001585,2]
[419940088,1775524244830,-1000.0,0.0001585,2]
[419940089,1775524244841,-1000.0,0.0001585,2]
[419940090,1775524244851,-1000.0,0.0001585,2]
[419940091,1775524244861,-1911.0,0.00015862,2]
[419940092,1775524244871,-1911.0,0.00015865,2]
[419940093,1775524244881,-400.74014208,0.00015896,2]
[419940094,1775524244890,-2104.16666251,0.00015896,2]
[419940095,1775524244900,-198.36570913,0.00015896,2]
[419940096,1775524244909,-400.74014206,0.00015898,2]
[419940097,1775524244920,-2104.1666625,0.00015898,2]
[419940098,1775524244930,-152.12369265,0.000159,2]
[419940099,1775524244940,-5800.0,0.000159,2]
[419940100,1775524244950,-18617.60280529,0.000159,2]
[419940101,1775524244959,-9807.43946548,0.000159,2]
[419940102,1775524244970,-400.74014206,0.000159,2]
[419940103,1775524244980,-2104.1666625,0.000159,2]
[419940104,1775524244989,-2000.0,0.000159,2]
[419940105,1775524244999,-1911.0,0.00015947,2]
[419940106,1775524245009,-501.0,0.00015956,4]
[419940107,1775524245019,-1357.91636462,0.0001596,2]
[419940108,1775524245030,-1536.04360649,0.00015966,2]
[419940109,1775524245040,-200.0,0.00015966,2]
[419940110,1775524245052,-194.72792766,0.00015966,2]
[419940111,1775524245062,-829.12830338,0.00015966,2]
[419940112,1775524245072,-500.0,0.00015973,2]
[419940113,1775524245082,-500.0,0.00015973,2]
[419940114,1775524245092,-500.0,0.00015973,2]
[419940115,1775524245102,-500.0,0.00015973,2]
[419940116,1775524245112,-500.25654321,0.00015973,2]
[419940117,1775524245123,-500.0,0.00015973,2]
[419940118,1775524245133,-500.0,0.00015973,2]
[419940119,1775524245143,-286.46237648,0.00015973,2]
[419940120,1775524245154,-500.0,0.00015973,2]
[419940121,1775524245165,-500.0,0.00015973,2]
[419940122,1775524245179,-623.42048552,0.00015973,2]
[419940123,1775524245189,-500.0,0.00015973,2]
[419940124,1775524245200,-500.0,0.00015973,2]
[419940125,1775524245210,-500.0,0.00015973,2]
[419940126,1775524245223,-337.84455229,0.00015973,2]
[419940127,1775524245235,-556.68829625,0.00015973,2]
[419940128,1775524245246,-500.0,0.00015973,2]
[419940129,1775524245259,-500.0,0.00015973,2]
[419940130,1775524245269,-500.0,0.00015973,2]
[419940131,1775524245280,-500.96410238,0.00015973,2]
[419940132,1775524245291,-500.0,0.00015973,2]
[419940133,1775524245301,-500.0,0.00015973,2]
[419940134,1775524245312,-502.32819122,0.00015973,2]